Cogmind - Beta 12 @@@ ROGUE MODE // 2023.11.17 @ 18:32:26 Player: Figgis Result: Destroyed by S-43 Plague with Heavy Machine Gun Performance ------------- Evolutions (7) 3500 Regions Visited (17) 3400 Robots Destroyed (108) 540 Value Destroyed (4376) 4376 Prototype IDs (43) 860 Alien Tech Used (0) 0 Bonus (835) 835 TOTAL SCORE: 13511 Bonus ------- Follower Combat Kills 35 Entered DSFs 500 Aligned with FarCom 300 Cogmind --------- Core Integrity 0/1300 Matter 223/300 Energy 90/100 System Corruption 3% Temperature Cool (0) Movement Core (50) Location -3/Armory Parts ------- > --- POWER (2) -------- (None) > --- PROPULSION (7) --- (None) > --- UTILITY (7) ------ (None) > --- WEAPON (5) ------- (None) > --- INVENTORY (5) ---- Advanced Cooling System Huge Storage Unit Advanced Phase Shifter Antimissile System PSU Rigger Peak State ------------ > --- POWER ------------ Improved Deuterium Engine Heavy Deuterium Engine > --- PROPULSION ------- Carbon-fiber Leg Titanium Leg Improved Carbon-fiber Leg Wheeled Compact-VSS Exoskeleton > --- UTILITY ---------- Armored Scrap Engine Huge Storage Unit Visual Processing Unit 0b10 Alert Chip Improved Shield Generator > --- WEAPON ----------- XL Autogun Array > --- INVENTORY -------- Heavy Deuterium Engine Heavy Deuterium Engine Aluminum Leg Aluminum Leg Carbon-fiber Leg Titanium Leg Armor Integrity Analyzer Medium Reactive Plating PSU Rigger Gauss Cannon [Rating: 95] Favorites ----------- Power Heavy Deuterium Engine Engine Heavy Deuterium Engine Power Core Light Nuclear Core Reactor Light Antimatter Reactor Propulsion Titanium Leg Leg Titanium Leg Wheel Constructs Hover Unit Combat Linear Gravjet Flight Unit VTOL Module Utility 0b10 Alert Chip Device Armored Scrap Engine Storage Huge Storage Unit Processor 0b10 Alert Chip Hackware Advanced Hacking Suite Protection Improved Heavy Armor Plating Weapon Gauss Rifle Energy Gun Gatling Laser Ballistic Gun Gauss Rifle Ballistic Cannon Constructs Slashing Weapon Makeshift Axe Piercing Weapon Spear Build | -11 -10 -10 -10 -9 -8 -7 -7 -7 -5 -5 -5 -4 -4 -4 -4 -3 -3 ------- Run | Jun Mat Min Exi Min Mat Fac Sto Rec Fac Upp Upp Fac Was Fac DSF Res Arm Slots Evolved 14 | . . . . . 4 2 . . 4 . . 2 . . . 2 . Power 1 | . . . . . . 1 . . . . . . . . . . . Propulsion 5 | . . . . . 2 . . . 1 . . 1 . . . 1 . Utility 5 | . . . . . 1 . . . 3 . . . . . . 1 . Weapon 3 | . . . . . 1 1 . . . . . 1 . . . . . Parts Attached 116 | 3 11 . 1 . 13 12 25 . 4 17 . 2 6 4 . 2 16 Power 16 | 1 2 . . . 1 2 7 . . 2 . . . . . . 1 Engine 14 | 1 2 . . . . 2 7 . . 2 . . . . . . . Core 1 | . . . . . 1 . . . . . . . . . . . . Reactor 1 | . . . . . . . . . . . . . . . . . 1 Propulsion 41 | 2 2 . . . 6 2 10 . 1 4 . 1 2 . . . 11 Treads . | . . . . . . . . . . . . . . . . . . Leg 23 | 2 2 . . . 6 2 10 . 1 . . . . . . . . Wheel 1 | . . . . . . . . . . . . 1 . . . . . Hover 3 | . . . . . . . . . . . . . 1 . . . 2 Flight 14 | . . . . . . . . . . 4 . . 1 . . . 9 Utility 33 | . 3 . 1 . 3 2 4 . 3 7 . 1 3 3 . 2 1 Device 24 | . 2 . . . 1 2 4 . 2 5 . . 3 2 . 2 1 Storage 4 | . 1 . 1 . 1 . . . . 1 . . . . . . . Processor 2 | . . . . . 1 . . . 1 . . . . . . . . Hackware 2 | . . . . . . . . . . 1 . . . 1 . . . Protection 1 | . . . . . . . . . . . . 1 . . . . . Artifact . | . . . . . . . . . . . . . . . . . . Weapon 26 | . 4 . . . 3 6 4 . . 4 . . 1 1 . . 3 Energy Gun 8 | . 4 . . . 2 2 . . . . . . . . . . . Energy Cannon . | . . . . . . . . . . . . . . . . . . Ballistic Gun 6 | . . . . . 1 3 2 . . . . . . . . . . Ballistic Cannon 3 | . . . . . . 1 2 . . . . . . . . . . Launcher . | . . . . . . . . . . . . . . . . . . Special Weapon . | . . . . . . . . . . . . . . . . . . Impact Weapon . | . . . . . . . . . . . . . . . . . . Slashing Weapon 3 | . . . . . . . . . . 1 . . . 1 . . 1 Piercing Weapon 6 | . . . . . . . . . . 3 . . 1 . . . 2 Special Melee Weapon . | . . . . . . . . . . . . . . . . . . Unidentified Prototypes 6 | . 1 . . . . . 2 . . 1 . . 1 . . 1 . Parts Lost 59 | . 4 . . . 3 5 11 . 3 14 . . . . 3 . 16 Power 10 | . 2 . . . . 1 2 . 2 2 . . . . . . 1 Propulsion 26 | . 2 . . . 2 1 4 . . 5 . . . . 1 . 11 Utility 13 | . . . . . 1 . 2 . 1 4 . . . . 2 . 3 Weapon 10 | . . . . . . 3 3 . . 3 . . . . . . 1 Highest Loss Streak 13 | . 3 . . . 2 4 7 . 1 6 . . . . 3 . 13 To Critical Strikes 1 | . . . . . . . . . . 1 . . . . . . . Average Slot Usage (%) 77 | . 91 100 100 100 98 98 88 69 63 55 47 45 52 59 55 47 43 Engine 7 | . 12 14 14 14 4 8 12 15 8 3 5 5 5 5 5 4 2 Core 1 | . . . . . 4 5 . . 1 . . . . . . . . Leg 19 | . 25 28 28 28 35 29 29 30 17 . . . . . . . . Wheel 1 | . . . . . . . . . 2 3 . 3 . . . . . Flight 1 | . . . . . . . . . . 1 23 21 25 26 22 19 17 Device 9 | . 13 14 14 14 7 7 5 . 7 12 11 10 11 20 19 19 13 Storage 6 | . 13 14 14 14 9 7 7 7 5 3 . . . . . . . Processor 6 | . . . . . 8 7 7 7 10 8 . . . . . . . Energy Gun 9 | . 26 28 28 28 22 13 . . . 3 . . . . . . . Ballistic Gun 6 | . . . . . 4 15 14 7 4 2 . . . . . . . Ballistic Cannon 1 | . . . . . . . 8 . . 2 . . . . . . . Piercing Weapon 1 | . . . . . . . . . . 8 . . . . . . 1 Naked Turns 12 | . . . . . . . . . . . . . . . . . 12 Heaviest Build 125 | 3 17 17 32 32 98 113 125 116 121 107 16 16 19 17 16 16 29 Greatest Support 78 | 3 26 20 20 20 68 68 65 62 78 48 16 16 16 16 16 16 36 Greatest Overweight (x) 10 | . 3 . 1 1 1 2 2 1 6 10 . . 1 1 . . 1 Average Overweight (x) . | . . . . 1 . 1 1 1 1 3 . . . . . . . Largest Inventory Capacity 25 | 5 8 8 15 15 25 25 25 25 25 25 5 5 5 5 5 5 5 Average Capacity 19 | 5 7 8 13 15 18 25 25 25 25 18 5 5 5 5 5 5 5 Most Carried 25 | 5 8 7 13 15 16 25 25 23 23 9 5 5 5 5 5 5 5 Average Carried 12 | 3 5 6 9 14 14 19 23 22 9 6 5 5 4 4 5 4 4 Final Capacity 25 | 5 8 8 15 15 25 25 25 25 25 5 5 5 5 5 5 5 5 Final Carried 25 | 5 6 7 13 15 16 25 20 23 9 5 5 5 5 5 5 4 5 Scrap Engine Consumption 85 | . . . . . . . . . 39 7 . 6 . 5 7 1 20 Constructs Created 5 | . . . . . . . . . 3 2 . . . . . . . Constructs Modified 8 | . . . . . . . . . 7 1 . . . . . . . Class Distribution -------------------- 36% | Mutant 31% | Skirmisher 16% | Scavenger-Skirmisher 7% | Scavenger-Tank 5% | Scavenger-Sprinter Dominant Class ---------------- Mutant | -10/Materials Mutant | -10/Mines Mutant | -10/Exiles Mutant | -9/Mines Skirmisher | -8/Materials Scavenger-Skirmisher | -7/Factory Scavenger-Skirmisher | -7/Storage Skirmisher | -7/Recycling Skirmisher | -5/Factory Mutant | -5/Upper Caves Scavenger-Sprinter | -5/Upper Caves Scavenger-Sprinter | -4/Factory Scavenger-Sprinter | -4/Waste Scavenger-Mutant | -4/Factory Scavenger-Sprinter | -4/DSF Scavenger-Sprinter | -3/Research Scavenger-Sprinter | -3/Armory Resources | -11 -10 -10 -10 -9 -8 -7 -7 -7 -5 -5 -5 -4 -4 -4 -4 -3 -3 ----------- Run | Jun Mat Min Exi Min Mat Fac Sto Rec Fac Upp Upp Fac Was Fac DSF Res Arm Matter Collected 3730 | 223 106 40 . 10 138 517 1067 . 1007 480 . . . . . . 142 Remotely . | . . . . . . . . . . . . . . . . . . Salvage Created 4527 | . 288 125 . . 481 825 798 64 1545 301 . . . . . . 100 Parts 218 | . 16 8 . . 29 43 35 2 64 13 . . . . . . 8 Haulers Intercepted 2 | . . . . . 1 . 1 . . . . . . . . . . Recyclers Shooed 1 | . . . . . . . . . 1 . . . . . . . . Parts Field Recycled . | . . . . . . . . . . . . . . . . . . Retrieved Matter . | . . . . . . . . . . . . . . . . . . Parts Self-Destructed 9 | . . . . . . . . . . 9 . . . . . . . Prevented . | . . . . . . . . . . . . . . . . . . Kills | -11 -10 -10 -10 -9 -8 -7 -7 -7 -5 -5 -5 -4 -4 -4 -4 -3 -3 ------- Run | Jun Mat Min Exi Min Mat Fac Sto Rec Fac Upp Upp Fac Was Fac DSF Res Arm Combat Hostiles Destroyed 90 | . 8 6 . . 12 16 15 1 20 9 . . . . . . 3 Melee 8 | . . . . . . . . . . 5 . . . . . . 3 Guns 71 | . 7 6 . . 12 15 8 1 20 2 . . . . . . . Cannons 10 | . . . . . . 1 7 . . 2 . . . . . . . Classes Destroyed 15 | . 3 . . . 4 3 3 . 2 . . . . . . . . Worker 4 | . . . . . . 2 2 . . . . . . . . . . Builder 3 | . . . . . . . 2 . 1 . . . . . . . . Hauler 2 | . . . . . 1 . 1 . . . . . . . . . . Recycler 2 | . . . . . . . . . 2 . . . . . . . . Mechanic 2 | . . . . . . . 2 . . . . . . . . . . Watcher 5 | . 1 . . . 1 1 . . 2 . . . . . . . . Swarmer 25 | . 3 5 . . 4 . . . 2 8 . . . . . . 3 Grunt 28 | . 5 1 . . 4 6 9 . 3 . . . . . . . . Brawler 1 | . . . . . . . . . 1 . . . . . . . . Duelist 2 | . . . . . . . 1 . 1 . . . . . . . . Sentry 9 | . . . . . 1 . 3 1 4 . . . . . . . . Specialist 2 | . . . . . . 2 . . . . . . . . . . . Hunter 7 | . . . . . 2 3 . . 1 1 . . . . . . . Programmer 14 | . . . . . . 4 2 . 8 . . . . . . . . Heavy 2 | . . . . . 1 1 . . . . . . . . . . . Best Kill Streak 6 | . 4 3 . . 4 4 6 1 3 4 . . . . . . 3 Combat Bots Only 4 | . 4 3 . . 4 3 4 1 3 4 . . . . . . 3 Max Kills in Single Turn 2 | . 1 1 . . 1 2 2 1 1 1 . . . . . . 1 Gunslinging . | . . . . . . . . . . . . . . . . . . Exploded . | . . . . . . . . . . . . . . . . . . Melee 1 | . . . . . . . . . . 1 . . . . . . 1 Uniques/NPCs Destroyed . | . . . . . . . . . . . . . . . . . . Combat | -11 -10 -10 -10 -9 -8 -7 -7 -7 -5 -5 -5 -4 -4 -4 -4 -3 -3 -------- Run | Jun Mat Min Exi Min Mat Fac Sto Rec Fac Upp Upp Fac Was Fac DSF Res Arm Damage Taken 10457 | . 574 164 . . 720 1020 2215 49 1198 1615 . 78 . . 199 . 2625 Core 2538 | . 130 . . . 191 132 273 . 131 304 . 22 . . 47 . 1308 Absorbed by Shields 166 | . . . . . . . . . 166 . . . . . . . . Regen/Repaired (Parts) 625 | . . . . . . . . . 165 118 . . 297 . . 45 . Core Remaining (%) 67 | 100 . . . 48 65 . . 42 . . 56 . . . 94 . . Volleys Fired 250 | . 26 12 . . 26 50 53 2 69 12 . . . . . . . Largest 4 | . 2 2 . . 3 4 4 1 1 2 . . . . . . . Hottest 268 | . 112 112 . . 216 268 152 60 60 79 . . . . . . . Shots Fired 562 | . 52 24 . . 64 159 171 2 72 18 . . . . . . . Gun 478 | . 52 24 . . 64 157 99 2 72 8 . . . . . . . Cannon 84 | . . . . . . 2 72 . . 10 . . . . . . . Launcher . | . . . . . . . . . . . . . . . . . . Special . | . . . . . . . . . . . . . . . . . . Kinetic 378 | . . . . . 4 111 171 2 72 18 . . . . . . . Thermal 184 | . 52 24 . . 60 48 . . . . . . . . . . . Explosive . | . . . . . . . . . . . . . . . . . . Electromagnetic . | . . . . . . . . . . . . . . . . . . Robot Hit Streak 13 | . 3 3 . . 13 8 11 3 12 5 . . . . . . . Robot Miss Streak 10 | . 7 4 . . 5 9 10 2 8 2 . . . . . . . Penetration Max 1 | . . . . . . 1 1 . . . . . . . . . . Secondary Targets 5 | . 3 . . . . 2 . . . . . . . . . . . Max Gunslinging Chain 1 | . 1 . . . . 1 . . . . . . . . . . . Shots Hit Robots 367 | . 24 11 . . 49 89 96 2 65 25 . . . . . . 6 Core Hits 221 | . 10 6 . . 35 45 48 2 54 18 . . . . . . 3 Critical Kills 1 | . . . . . . . 1 . . . . . . . . . . Critical Parts Destroyed 6 | . . . . . . 5 1 . . . . . . . . . . Critical Strikes 19 | . 4 1 . . 3 5 5 . . . . . . . . . 1 Burn 8 | . 4 1 . . 3 . . . . . . . . . . . . Destroy 7 | . . . . . . 5 2 . . . . . . . . . . Blast 3 | . . . . . . . 3 . . . . . . . . . . Impale 1 | . . . . . . . . . . . . . . . . . 1 Melee Attacks 40 | . . . . . . . . . . 25 . . . . . . 15 Impact . | . . . . . . . . . . . . . . . . . . Slashing 9 | . . . . . . . . . . 9 . . . . . . . Piercing 31 | . . . . . . . . . . 16 . . . . . . 15 Sneak Attacks . | . . . . . . . . . . . . . . . . . . Combat Hostiles . | . . . . . . . . . . . . . . . . . . Follow-up Attacks 3 | . . . . . . . . . . 3 . . . . . . . Damage Inflicted 11529 | . 483 196 . . 1081 1854 2939 119 3772 859 . . . . . . 226 Guns 9128 | . 483 196 . . 983 1817 1630 119 3772 128 . . . . . . . Cannons 1359 | . . . . . . 37 1154 . . 168 . . . . . . . Explosions 253 | . . . . . 98 . 155 . . . . . . . . . . Melee 752 | . . . . . . . . . . 527 . . . . . . 225 Ramming 37 | . . . . . . . . . . 36 . . . . . . 1 Kinetic 8164 | . . . . . 36 1157 2784 119 3772 296 . . . . . . . Thermal 2323 | . 483 196 . . 947 697 . . . . . . . . . . . Explosive 253 | . . . . . 98 . 155 . . . . . . . . . . Electromagnetic . | . . . . . . . . . . . . . . . . . . Impact . | . . . . . . . . . . . . . . . . . . Slashing 108 | . . . . . . . . . . 108 . . . . . . . Piercing 644 | . . . . . . . . . . 419 . . . . . . 225 Highest Corruption 11 | . . . . . . 3 2 . 4 9 9 . 9 9 11 . 3 Average Corruption 4 | . . . . . . 2 1 . 3 5 9 . 9 9 9 . 1 Corruption Purged 5 | . . . . . . 3 2 . . . . . . . . . . Corruption Blocked . | . . . . . . . . . . . . . . . . . . Effects 110 | . . . . . . 3 2 . 37 54 . . 3 7 2 . 2 Message Errors 25 | . . . . . . 1 1 . 9 13 . . . . . . 1 Matter Fused 32 | . . . . . . 2 . . 13 14 . . 1 2 . . . Heat Flow Errors 14 | . . . . . . . . . 3 8 . . . 3 . . . Energy Discharges 11 | . . . . . . . . . 4 5 . . . 1 . . 1 Data Loss (minor) 13 | . . . . . . . . . 2 10 . . 1 . . . . Data Loss (major) 6 | . . . . . . . . . 2 2 . . 1 1 . . . Misfires 4 | . . . . . . . 1 . 3 . . . . . . . . Alerts 3 | . . . . . . . . . 1 2 . . . . . . . Misdirections 2 | . . . . . . . . . . . . . . . 2 . . Overload Shots . | . . . . . . . . . . . . . . . . . . Overflow Damage 96 | . . . . . . . 51 . . 45 . . . . . . . Projectiles 36 | . . . . . . . 33 . . 3 . . . . . . . Explosions 18 | . . . . . . . 18 . . . . . . . . . . Melee 42 | . . . . . . . . . . 42 . . . . . . . Knockbacks 16 | . . . . . . . 13 . . 3 . . . . . . . Impact . | . . . . . . . . . . . . . . . . . . Kinetic 16 | . . . . . . . 13 . . 3 . . . . . . . Secondary . | . . . . . . . . . . . . . . . . . . Self-Inflicted Damage 15 | . . . . . . . . . . 15 . . . . . . . Shots . | . . . . . . . . . . . . . . . . . . Rammed 24 | . . . . . . . . . . 23 . . . . . . 1 Targets Rammed 24 | . . . . . . . . . . 23 . . . . . . 1 Kicked . | . . . . . . . . . . . . . . . . . . Crushed . | . . . . . . . . . . . . . . . . . . Highest Temperature 563 | . 446 63 . . 392 487 563 98 333 257 . . . 258 . . 183 Average Temperature 135 | . 170 26 . . 152 156 172 57 97 87 . . . 133 . . 72 Received Heat Transfer 1449 | . 276 18 . . 162 135 726 18 66 . . . . . . . 48 Effects 21 | . 1 . . . 2 7 11 . . . . . . . . . . Shutdowns 5 | . . . . . . 2 3 . . . . . . . . . . Energy Bleed 6 | . . . . . 1 2 3 . . . . . . . . . . Interference 4 | . . . . . . 1 3 . . . . . . . . . . Matter Decay 1 | . 1 . . . . . . . . . . . . . . . . Short Circuit 2 | . . . . . . 1 1 . . . . . . . . . . Damage (minor) 2 | . . . . . 1 1 . . . . . . . . . . . Damage (core) 1 | . . . . . . . 1 . . . . . . . . . . Siege Activations . | . . . . . . . . . . . . . . . . . . Robots Corrupted . | . . . . . . . . . . . . . . . . . . Combat Hostiles . | . . . . . . . . . . . . . . . . . . Parts Fried . | . . . . . . . . . . . . . . . . . . Impact Corruptions . | . . . . . . . . . . . . . . . . . . Robots Melted 1 | . 1 . . . . . . . . . . . . . . . . Combat Hostiles 1 | . 1 . . . . . . . . . . . . . . . . Parts Melted 12 | . 2 1 . . 9 . . . . . . . . . . . . Heat Transferred 5642 | . 1332 481 . . 2329 1500 . . . . . . . . . . . Parts Sabotaged 3 | . . . . . . . . . . . . . . . . . 3 Parts Stolen . | . . . . . . . . . . . . . . . . . . Parts Stripped . | . . . . . . . . . . . . . . . . . . Power Chain Reactions . | . . . . . . . . . . . . . . . . . . Missiles Intercepted . | . . . . . . . . . . . . . . . . . . Alert | -11 -10 -10 -10 -9 -8 -7 -7 -7 -5 -5 -5 -4 -4 -4 -4 -3 -3 ------- Run | Jun Mat Min Exi Min Mat Fac Sto Rec Fac Upp Upp Fac Was Fac DSF Res Arm Peak Influence 426 | . 194 174 . . 197 166 190 111 229 . . 45 75 52 43 81 426 Initial 70 | . . 19 . . . . 57 70 . . . 30 15 52 38 21 42 Average 74 | . 79 115 . . 69 41 104 84 96 . . 30 36 52 34 39 154 Maximum Alert Level 2 | . . . . . . . . . 1 . . . . . . . 2 Low Security (%) 98 | 100 100 100 . 100 100 100 100 100 98 . . 100 100 100 100 100 76 Level 1 1 | . . . . . . . . . 1 . . . . . . . 22 Level 2 . | . . . . . . . . . . . . . . . . . . Level 3 . | . . . . . . . . . . . . . . . . . . Level 4 . | . . . . . . . . . . . . . . . . . . Level 5 . | . . . . . . . . . . . . . . . . . . High Security . | . . . . . . . . . . . . . . . . . . Max Security . | . . . . . . . . . . . . . . . . . . Squads Dispatched 31 | . 2 . . . 1 9 4 . 10 . . . . . 1 . 4 Investigation 3 | . 1 . . . . . 1 . 1 . . . . . . . . Extermination 8 | . . . . . . 3 . . 4 . . . . . . . 1 Reinforcement 14 | . 1 . . . 1 6 1 . 1 . . . . . 1 . 3 Assault 2 | . . . . . . . 2 . . . . . . . . . . Garrison 4 | . . . . . . . . . 4 . . . . . . . . Intercept . | . . . . . . . . . . . . . . . . . . Searches Triggered . | . . . . . . . . . . . . . . . . . . Construction Impeded 1 | . . . . . . . 1 . . . . . . . . . . Haulers Reinforced . | . . . . . . . . . . . . . . . . . . Active Scanning Responses . | . . . . . . . . . . . . . . . . . . Cargo Convoy Interrupts . | . . . . . . . . . . . . . . . . . . Stealth | -11 -10 -10 -10 -9 -8 -7 -7 -7 -5 -5 -5 -4 -4 -4 -4 -3 -3 --------- Run | Jun Mat Min Exi Min Mat Fac Sto Rec Fac Upp Upp Fac Was Fac DSF Res Arm Distress Signals 9 | . 2 . . . 2 1 . . 1 . . . . . . . 3 Communications Jammed . | . . . . . . . . . . . . . . . . . . Distress Signals . | . . . . . . . . . . . . . . . . . . Times Spotted 189 | . 14 6 . . 17 29 20 1 26 11 . 4 6 . 7 1 47 Peak Tracking Total 26 | . 5 3 . . 7 4 8 1 3 5 . 3 6 . 7 1 26 Tactical Retreats 13 | . 1 1 . . 3 . . . . 1 . . . . 1 . 6 Traps | -11 -10 -10 -10 -9 -8 -7 -7 -7 -5 -5 -5 -4 -4 -4 -4 -3 -3 ------- Run | Jun Mat Min Exi Min Mat Fac Sto Rec Fac Upp Upp Fac Was Fac DSF Res Arm Traps Triggered 7 | . 1 . . . . 1 1 . 1 . . 1 . . . . 2 Indirectly . | . . . . . . . . . . . . . . . . . . Trap Hack Attempts . | . . . . . . . . . . . . . . . . . . Triggered . | . . . . . . . . . . . . . . . . . . Disarmed . | . . . . . . . . . . . . . . . . . . Reprogrammed . | . . . . . . . . . . . . . . . . . . Reused . | . . . . . . . . . . . . . . . . . . Traps Extracted . | . . . . . . . . . . . . . . . . . . Installed . | . . . . . . . . . . . . . . . . . . Triggered . | . . . . . . . . . . . . . . . . . . Most Traps Carried 1 | . . . . 1 1 . . . . . . . . . . . . Machines | -11 -10 -10 -10 -9 -8 -7 -7 -7 -5 -5 -5 -4 -4 -4 -4 -3 -3 ---------- Run | Jun Mat Min Exi Min Mat Fac Sto Rec Fac Upp Upp Fac Was Fac DSF Res Arm Machines Disabled 10 | . . . . . 1 1 4 . 2 . . . . . . . 2 Max in Single Turn 1 | . . . . . 1 1 1 . 1 . . . . . . . 1 Garrison Access 1 | . . . . . 1 . . . . . . . . . . . . Machines Repaired . | . . . . . . . . . . . . . . . . . . Machines Sabotaged . | . . . . . . . . . . . . . . . . . . Overloaded Fab Kills . | . . . . . . . . . . . . . . . . . . Hacking | -11 -10 -10 -10 -9 -8 -7 -7 -7 -5 -5 -5 -4 -4 -4 -4 -3 -3 --------- Run | Jun Mat Min Exi Min Mat Fac Sto Rec Fac Upp Upp Fac Was Fac DSF Res Arm Machines Accessed 35 | . 2 . 2 . 7 4 4 3 5 1 1 2 . 1 . 1 2 Terminals 23 | . 2 . . . 5 4 4 3 2 . 1 . . 1 . . 1 Fabricators 2 | . . . . . . . . . 1 . . . . . . . 1 Repair Stations . | . . . . . . . . . . . . . . . . . . Recycling Units 3 | . . . . . . . . . 1 . . 1 . . . 1 . Scanalyzers 2 | . . . . . 1 . . . . . . 1 . . . . . Garrison Access 2 | . . . . . 1 . . . 1 . . . . . . . . Total Hacks 73 | . 6 . 2 . 20 14 7 7 9 1 1 2 . 1 . 1 2 Successful 36 | . 5 . 2 . 12 6 3 2 1 1 1 1 . 1 . . 1 Failed 36 | . 1 . . . 8 7 4 5 8 . . 1 . . . 1 1 Catastrophic 8 | . . . . . 1 1 1 1 2 . . 1 . . . . 1 Database Lockouts 1 | . . . . . . 1 . . . . . . . . . . . Manual 24 | . 5 . 1 . 8 5 4 . . . . . . . . . 1 Terminals 54 | . 6 . . . 12 14 7 7 5 . 1 . . 1 . . 1 Fabricators 2 | . . . . . . . . . 1 . . . . . . . 1 Repair Stations . | . . . . . . . . . . . . . . . . . . Recycling Units 3 | . . . . . . . . . 1 . . 1 . . . 1 . Scanalyzers 7 | . . . . . 6 . . . . . . 1 . . . . . Garrison Access 4 | . . . . . 2 . . . 2 . . . . . . . . Terminal Hacks 21 | . 3 . 2 . 3 4 3 2 1 1 1 . . 1 . . . Record 5 | . . . 1 . . 3 . . . . 1 . . . . . . Robot Analysis 4 | . 2 . . . 1 . . . 1 . . . . . . . . Prototype ID Bank 4 | . 1 . . . 1 . 1 1 . . . . . . . . . Open Door 2 | . . . . . . . 1 . . 1 . . . . . . . Open DSF 1 | . . . . . . . . . . . . . . 1 . . . Branch Access Points 2 | . . . . . 1 1 . . . . . . . . . . . Unreport Threat 1 | . . . . . . . 1 . . . . . . . . . . Transport Status 1 | . . . . . . . . 1 . . . . . . . . . EX-Prototype ID Bank 1 | . . . 1 . . . . . . . . . . . . . . Fabricator Hacks 1 | . . . . . . . . . . . . . . . . . 1 Network Status 1 | . . . . . . . . . . . . . . . . . 1 Repair Station Hacks . | . . . . . . . . . . . . . . . . . . Recycling Unit Hacks 1 | . . . . . . . . . . . . 1 . . . . . Report Inventory 1 | . . . . . . . . . . . . 1 . . . . . Scanalyzer 5 | . . . . . 5 . . . . . . . . . . . . Insert Component 2 | . . . . . 2 . . . . . . . . . . . . Analyze 3 | . . . . . 3 . . . . . . . . . . . . Garrison Access Hacks 1 | . . . . . 1 . . . . . . . . . . . . Seal Access 1 | . . . . . 1 . . . . . . . . . . . . Unauthorized Hacks 7 | . 2 . . . 3 2 . . . . . . . . . . . Terminals 7 | . 2 . . . 3 2 . . . . . . . . . . . Botnet 7 | . 2 . . . 3 2 . . . . . . . . . . . Fabricators . | . . . . . . . . . . . . . . . . . . Repair Stations . | . . . . . . . . . . . . . . . . . . Recycling Units . | . . . . . . . . . . . . . . . . . . Scanalyzers . | . . . . . . . . . . . . . . . . . . Garrison Access . | . . . . . . . . . . . . . . . . . . Data Cores Recovered . | . . . . . . . . . . . . . . . . . . Used . | . . . . . . . . . . . . . . . . . . Hacking Detections 27 | . 2 . . . 5 4 4 3 5 . . 1 . 1 . 1 1 Full Trace Events 1 | . . . . . . . . . 1 . . . . . . . . Feedback Events . | . . . . . . . . . . . . . . . . . . Feedback Blocked . | . . . . . . . . . . . . . . . . . . Robot Schematics Acquired . | . . . . . . . . . . . . . . . . . . Robots Built . | . . . . . . . . . . . . . . . . . . Authchips . | . . . . . . . . . . . . . . . . . . Time . | . . . . . . . . . . . . . . . . . . Total Robot Build Rating . | . . . . . . . . . . . . . . . . . . Part Schematics Acquired 2 | . . . . . 2 . . . . . . . . . . . . Parts Built . | . . . . . . . . . . . . . . . . . . Authchips . | . . . . . . . . . . . . . . . . . . Time . | . . . . . . . . . . . . . . . . . . Total Part Build Rating . | . . . . . . . . . . . . . . . . . . Parts Repaired . | . . . . . . . . . . . . . . . . . . Time . | . . . . . . . . . . . . . . . . . . Parts Recycled . | . . . . . . . . . . . . . . . . . . Recycled Matter . | . . . . . . . . . . . . . . . . . . Retrieved Matter . | . . . . . . . . . . . . . . . . . . Retrieved Components . | . . . . . . . . . . . . . . . . . . Parts Scanalyzed 2 | . . . . . 2 . . . . . . . . . . . . Part Schematics Acquired 2 | . . . . . 2 . . . . . . . . . . . . Parts Damaged 1 | . . . . . 1 . . . . . . . . . . . . Bothacking | -11 -10 -10 -10 -9 -8 -7 -7 -7 -5 -5 -5 -4 -4 -4 -4 -3 -3 ------------ Run | Jun Mat Min Exi Min Mat Fac Sto Rec Fac Upp Upp Fac Was Fac DSF Res Arm Used RIF Installer . | . . . . . . . . . . . . . . . . . . Robots Hacked . | . . . . . . . . . . . . . . . . . . Non-combat . | . . . . . . . . . . . . . . . . . . Combat . | . . . . . . . . . . . . . . . . . . Robot Hacks Applied . | . . . . . . . . . . . . . . . . . . Relay Couplers Released . | . . . . . . . . . . . . . . . . . . Fabnet Peak Effective % . | . . . . . . . . . . . . . . . . . . Robots Rewired . | . . . . . . . . . . . . . . . . . . Allies Hacked . | . . . . . . . . . . . . . . . . . . Hacks Repelled . | . . . . . . . . . . . . . . . . . . Allies | -11 -10 -10 -10 -9 -8 -7 -7 -7 -5 -5 -5 -4 -4 -4 -4 -3 -3 -------- Run | Jun Mat Min Exi Min Mat Fac Sto Rec Fac Upp Upp Fac Was Fac DSF Res Arm Total Allies 2 | . . . . . . . 2 . . . . . . . . . . Largest Group 2 | . . . . . . . 2 . . . . . . . . . . Highest-Rated Group 62 | . . . . . . . 62 . . . . . . . . . . Highest-Rated Ally 31 | . . . . . . . 31 . . . . . . . . . . Total Orders . | . . . . . . . . . . . . . . . . . . Ally Attacks 4 | . . . . . . . 4 . . . . . . . . . . Total Damage 84 | . . . . . . . 84 . . . . . . . . . . Kills 1 | . . . . . . . 1 . . . . . . . . . . Allies Corrupted . | . . . . . . . . . . . . . . . . . . Allies Melted . | . . . . . . . . . . . . . . . . . . Intel | -11 -10 -10 -10 -9 -8 -7 -7 -7 -5 -5 -5 -4 -4 -4 -4 -3 -3 ------- Run | Jun Mat Min Exi Min Mat Fac Sto Rec Fac Upp Upp Fac Was Fac DSF Res Arm Robot Analysis Total 4 | . 2 . . . 1 . . . 1 . . . . . . . . Derelict Logs Recovered 3 | . . 1 . . . . . . . 2 . . . . . . . Drone Launches . | . . . . . . . . . . . . . . . . . . Drone Recoveries . | . . . . . . . . . . . . . . . . . . Exploration | -11 -10 -10 -10 -9 -8 -7 -7 -7 -5 -5 -5 -4 -4 -4 -4 -3 -3 ------------- Run | Jun Mat Min Exi Min Mat Fac Sto Rec Fac Upp Upp Fac Was Fac DSF Res Arm Turns Passed 10957 | 28 469 293 432 276 921 2229 779 443 1968 2324 16 40 101 185 29 88 336 Spaces Moved 6151 | 35 286 211 253 143 447 966 271 226 711 719 62 97 249 388 88 264 735 Core 384 | 35 36 . . . . . . . . 277 . . . . . . 36 Treads . | . . . . . . . . . . . . . . . . . . Legs 3486 | . 250 211 253 143 447 966 271 226 710 9 . . . . . . . Wheels 183 | . . . . . . . . . 1 182 . . . . . . . Hover 9 | . . . . . . . . . . . . . . . . . 9 Flight 2089 | . . . . . . . . . . 251 62 97 249 388 88 264 690 Fastest Speed 19 | 50 50 120 120 190 120 195 190 190 181 26 26 26 26 26 26 26 19 Average Speed 151 | 50 117 120 168 190 153 197 205 190 239 300 26 34 26 45 26 26 29 Slowest Speed 806 | 50 200 120 190 190 200 266 265 190 526 806 26 36 106 106 26 26 120 Overloaded Moves . | . . . . . . . . . . . . . . . . . . Propulsion Burnouts . | . . . . . . . . . . . . . . . . . . Robots Hopped 17 | . . . . . . . . . . . . . . . . 7 10 Cave-ins Triggered . | . . . . . . . . . . . . . . . . . . Exploration Rate (%) 38 | 3 52 50 64 48 30 23 28 57 18 85 9 3 79 9 79 10 47 Regions Visited 17 Branch Regions 8 Pre-discovered Areas 3 | . . 1 1 . . . . . . 1 . . . . . . . Known Exits Taken 2 | . . . . . . 1 . . . . . . . 1 . . . Unknown Exits Taken 12 | 1 1 1 1 1 1 . 1 1 1 1 1 . . . . 1 . Scrap Searched 9 | . . 1 . 2 . . . . . 5 1 . . . . . . Spaces Dug 6 | . . . . . . 4 . . . . . . . . . . 2 Terrain Destroyed 82 | . . . . . 5 7 48 1 17 2 . . . . . . 2 Melee 2 | . . . . . . . . . . . . . . . . . 2 Projectile 66 | . . . . . . 7 39 1 17 2 . . . . . . . AOE 14 | . . . . . 5 . 9 . . . . . . . . . . Terrain Rammed . | . . . . . . . . . . . . . . . . . . Walls Destroyed . | . . . . . . . . . . . . . . . . . . Machines Disabled . | . . . . . . . . . . . . . . . . . . Actions | -11 -10 -10 -10 -9 -8 -7 -7 -7 -5 -5 -5 -4 -4 -4 -4 -3 -3 --------- Run | Jun Mat Min Exi Min Mat Fac Sto Rec Fac Upp Upp Fac Was Fac DSF Res Arm Total 7309 | 45 368 227 258 148 628 1166 377 240 984 832 61 103 283 397 93 276 823 Wait 570 | . 29 4 . 2 119 116 7 11 180 20 . 3 23 . 6 16 34 Move 6106 | 34 285 210 252 142 446 965 270 225 710 718 61 97 248 387 87 252 717 Hop 12 | . . . . . . . . . . . . . . . . 4 8 Pick Up 101 | 8 12 1 4 3 12 19 12 2 5 11 . . 2 1 . 1 8 Fast Attach 30 | . 1 . . . 5 1 3 . . 5 . 2 4 3 . . 6 Attach 61 | 3 8 . . . 4 6 10 . 4 12 . . 1 1 . 2 10 Detach 9 | . 1 . . . . . . . . 3 . . 1 1 . . 3 Swap 25 | . 2 . 1 . 4 5 12 . . . . . 1 . . . . Drop 67 | . 4 . 1 1 12 4 10 . 16 7 . 1 3 4 . 1 3 Fire 250 | . 26 12 . . 26 50 53 2 69 12 . . . . . . . Melee 36 | . . . . . . . . . . 21 . . . . . . 15 Ram 24 | . . . . . . . . . . 23 . . . . . . 1 Kick . | . . . . . . . . . . . . . . . . . . Crush . | . . . . . . . . . . . . . . . . . . Escape Stasis 18 | . . . . . . . . . . . . . . . . . 18 Rewire . | . . . . . . . . . . . . . . . . . . Trap . | . . . . . . . . . . . . . . . . . . Miscellaneous . | . . . . . . . . . . . . . . . . . . Route ------- -11/Junkyard -10/Materials (discovered 2 exits: [*Mat] / [*Min]) -10/Mines (discovered 2 exits: [*Mat] / *Exi) -10/Exiles -9/Mines -8/Materials -7/Factory (discovered 4 exits: [*Fac] / *Sto / Low x2) -7/Storage -7/Recycling -5/Factory -5/Upper Caves -5/Upper Caves -4/Factory -4/Waste -4/Factory -4/DSF -3/Research -3/Armory History --------- Turn | Location | Event 16 | -11/Junkyard | Discovered new exit (range 16) 29 | -11/Junkyard | Entered Materials 177 | -10/Materials | Discovered new exit (range 16) 312 | -10/Materials | Build established: Mutant 401 | -10/Materials | Discovered new exit (range 14) 428 | -10/Materials | Core integrity fell below 50% 462 | -10/Materials | Lost 3 parts (1p2n) 498 | -10/Materials | Entered Mines 520 | -10/Mines | Learned location of Storage (-7) 626 | -10/Mines | Received a Rocket Launcher from a helpful Derelict 703 | -10/Mines | Discovered new exit (range 5) 787 | -10/Mines | Deemed a non-threat by the Exiles lab entrance 787 | -10/Mines | Discovered new exit (range 5) 791 | -10/Mines | Entered Exiles 820 | -10/Exiles | Met 8R-AWN 841 | -10/Exiles | Met EX-HEX 946 | -10/Exiles | Met EX-BIN 969 | -10/Exiles | Aligned with FarCom system 971 | -10/Exiles | Given EX-Vault access code 1017 | -10/Exiles | Opened EX-Vault 1028 | -10/Exiles | Found XL Autogun Array 1031 | -10/Exiles | Found PSU Rigger 1038 | -10/Exiles | Found 0b10 Alert Chip 1077 | -10/Exiles | Warned to stay clear of 0b10 Research branches 1132 | -10/Exiles | Met EX-DEC 1139 | -10/Exiles | Learned location of Zion (-6) 1198 | -10/Exiles | Discovered new exit (range 14) 1223 | -10/Exiles | Stole three prototypes: 0b10 Alert Chip, PSU Rigger, XL Autogun Array 1223 | -10/Exiles | Entered Mines 1246 | -9/Mines | Assembled infested the area 1251 | -9/Mines | Assisted by a Guerilla fighting off Assembled 1261 | -9/Mines | Met a Derelict bent on vengeance 1455 | -9/Mines | Found a hidden stash of uninstalled traps 1482 | -9/Mines | Discovered new exit (range 8) 1499 | -9/Mines | Entered Materials 1499 | -8/Materials | Evolved 4 slots: Propulsion x2, Utility x1, Weapon x1 1894 | -8/Materials | Discovered new exit (range 12) 2253 | -8/Materials | Build established: Skirmisher 2420 | -8/Materials | Entered Factory 2420 | -7/Factory | Evolved 2 slots: Power x1, Weapon x1 2422 | -7/Factory | FarCom data flow suspended 2814 | -7/Factory | Discovered new exit (range 11) 3230 | -7/Factory | Identified exit to Storage 3230 | -7/Factory | Identified exit to Lower Caves 3230 | -7/Factory | Central database locked down 3367 | -7/Factory | Build established: Scavenger-Skirmisher 4292 | -7/Factory | Lost 4 parts (1p1n2w) 4649 | -7/Factory | Entered Storage 4683 | -7/Storage | Met a pair of Derelict thieves 4848 | -7/Storage | Lost 3 parts (1p1n1w) 5221 | -7/Storage | Core integrity fell below 50% 5277 | -7/Storage | Lost 7 parts (1p2n2u2w) 5420 | -7/Storage | Used back door to open Recycling access 5420 | -7/Storage | Discovered new exit (range 5) 5428 | -7/Storage | Entered Recycling 5428 | -7/Recycling | Found Scrap Engine 5494 | -7/Recycling | Build established: Skirmisher 5823 | -7/Recycling | Discovered new exit (range 15) 5871 | -7/Recycling | Entered Factory 5871 | -5/Factory | Evolved 4 slots: Propulsion x1, Utility x3 6412 | -5/Factory | Build established: Scavenger-Tank 6746 | -5/Factory | Garrison activated, responded to threat 7353 | -5/Factory | Build established: Skirmisher 7695 | -5/Factory | Discovered new exit (range 4) 7771 | -5/Factory | Garrison activated, responded to threat 7839 | -5/Factory | Entered Upper Caves 7922 | -5/Upper Caves | Lost 6 parts (2p4n) 7949 | -5/Upper Caves | Encountered a Warlord checkpoint 8104 | -5/Upper Caves | Build established: Mutant 9596 | -5/Upper Caves | Learned location of Warlord (-4) 9840 | -5/Upper Caves | Learned Factory terminal intel 10080 | -5/Upper Caves | Lost 5 parts (3u2w) 10157 | -5/Upper Caves | Discovered new exit (range 12) 10163 | -5/Upper Caves | Entered another Upper Caves area 10177 | -5/Upper Caves | Discovered new exit (range 11) 10179 | -5/Upper Caves | Entered Factory 10179 | -4/Factory | Evolved 2 slots: Propulsion x1, Weapon x1 10180 | -4/Factory | Loaded intel: 27 terminal locations 10219 | -4/Factory | Sucked down chute 10219 | -4/Factory | Entered Waste 10234 | -4/Waste | EMP discharged 10236 | -4/Waste | Spotted C-40 Crusher 10247 | -4/Waste | Spotted C-40 Crusher 10260 | -4/Waste | Spotted C-40 Crusher 10293 | -4/Waste | Spotted C-40 Crusher 10294 | -4/Waste | Spotted C-40 Crusher 10298 | -4/Waste | Spotted C-40 Crusher 10314 | -4/Waste | Discovered new exit (range 12) 10320 | -4/Waste | Entered Factory 10505 | -4/Factory | Identified exit to DSF 10505 | -4/Factory | Entered DSF 10516 | -4/DSF | System corruption reached 10% 10527 | -4/DSF | Additional patrols routed to DSF 10530 | -4/DSF | Discovered new exit (range 15) 10534 | -4/DSF | Entered Research 10534 | -3/Research | Evolved 2 slots: Propulsion x1, Utility x1 10560 | -3/Research | Lost 3 parts (1n2u) 10573 | -3/Research | Spotted B-86 Titan 10613 | -3/Research | Discovered new exit (range 4) 10622 | -3/Research | Entered Armory 10758 | -3/Armory | Found Antimissile System 10768 | -3/Armory | Spotted B-86 Titan 10939 | -3/Armory | Core integrity fell below 50% 10951 | -3/Armory | Core integrity fell below 20% 10958 | -3/Armory | Destroyed by S-43 Plague with Heavy Machine Gun Last Messages --------------- 10922_ E-15 Imp destroyed. 10923_ Acquired Cesium-ion Thruster. 10925_ Acquired Xenon Bombardment Thruster. 10928_ Acquired Segregator. 10929_ Xenon Bombardment Thruster destroyed. 10929_ Acquired 20 matter. 10938_ Cesium-ion Thruster severed. 10940_ E-15 Imp destroyed. 10940_ Acquired Cesium-ion Thruster. 10940_ Cesium-ion Thruster destroyed. 10941_ Segregator destroyed. 10941_ Transfer Shaft disabled. 10941_ Arm. Scrap Engine destroyed. 10941_ Scrap Engine core remains intact and functional. 10941_ Acquired 17 matter. 10942_ Acquired Cesium-ion Thruster. 10943_ Cesium-ion Thruster destroyed. 10946_ Scrap Engine destroyed. 10952_ Knocked back. 10956_ 74YD63/&Z49EFJCF4X1H27XBV:KN Map ----- +----------------------------------------------------+ | ?????????????????????????????????? | | ?????????????????????????????????? | | ?????????????????????????????????? | | ?????????????????????????????????? | | ?????????????????????????????????? | | ?????????????????????????????????? | | ?????????????????????????????????? | | ?????????????????????????????????? | | ?????????????????????????????????? | | ?????????????????????????????????? | | ????????? ???????????????????????? | | ????????? ???????????????????????? | | ????????? ???????????????????????? | | ????????? ???????????????????????? | | ????????? ???????????????????????? | | ????????? ???????????????????????? | | ????????? ???????????????????????? | | ????????# #??????????????????????? | | ????????# #??????????????????????? | | ????????# #??????????????????????? | | ????????# #??????????????????????? | | ????????# #??????????????????????? | | ????????# #??????????????????????? | | ????????# #??????????????????????? | | ????????+ #??????????????????????? | | ????????#@############?????+###### | | ????????# ? !!! | | ????????# #####????????# !!! | | ????????# c #????????????# !! | | ????????+ ######???????# | | ????????# #?????? # | | ????????# s #????? # !! | | ????????# s!=]#???? # ! | | ????????# s!] ##### # # | | ????????#[ !] # | | ????????# "" | | ????????# s "" | | ????????# #####+# """ | | ????????# #???? | | ????????# +???"" # | | ????????######??? ### ! | | ???????????????? ??# | | ???????????????"""" ??############ | | ?????????????????? ?????????????? | | ??????????????????#??????????????? | | ?????????????????????????????????? | | | | | | | | | +----------------------------------------------------+ Best States ------------- Heat Dissipation 59 Energy Generation 34 Energy Capacity 520 Matter Stores 300 Matter Capacity 300 Sight Range 18 Terrain Scan Density 10 Jamming Range 12 Cloak Strength 4 Additional Mass Support 6 Base Temperature (-) 200 Evasion (%) 75 Offensive Hacking 14 Item Schematics ----------------- Titanium Leg | -8/Materials | Scanalyzed Carbon-fiber Leg | -8/Materials | Scanalyzed Robot Schematics ------------------ None Fabricated ------------ Nothing Alien Tech Used ----------------- None Achievements -------------- Fist Fight Challenges ------------ None Game ------ Seed TitaniumAlertShifter Manual? 0 Play Time 01:17:59 Cumulative 107.3 hours Start 2023.11.17 @ 17:16:28 End 2023.11.17 @ 18:32:26 Sessions 1 Manual Loads 0 Difficulty Rogue Special Mode None Game No. 177 Rogue 174 Adventurer 3 Explorer 0 Win Type - Total 0 Types 0/0/0/0/0/0/0/0/0 Lore% 43 Gallery% 58 Achievement% 41 Wizard Run 0 Options --------- ASCII 0 Keyboard 0 Movement Mouse Keybinds 0 Fullscreen 2 Font 18/SmallcapsGlow Map View 76x50 Tactical HUD 1 Map Filters NONE Filters NONE Steam 1 RUN: 6af31831-1cfc-453f-8448-ba776ba03465